fUST/lending_fUST_20250715
["ID","MTS","AMOUNT","RATE_DAILY","PERIOD"]
[372127539,1752532148724,-1240.45450414,0.0002,2]
[372127540,1752532154093,-9981.9174843,0.0002,2]
[372127541,1752532154115,-6156.8195553,0.0002,2]
[372127542,1752532154144,-8175.50673763,0.0002,2]
[372127543,1752532154165,-3191.45502361,0.0002,2]
[372127544,1752532154187,-362.37218603,0.0002,2]
[372127545,1752532154210,-839.50569351,0.0002,2]
[372127546,1752532154232,-2183.81486075,0.0002,2]
[372127547,1752532154254,-300.0,0.00020004,2]
[372127548,1752532154277,-19412.7704166,0.00020019,2]
[372127549,1752532154299,-250.078208,0.00020187,2]
[372127550,1752532154320,-436.51424371,0.00020383,2]
[372127551,1752532154341,-500.0,0.0002055,2]
[372127552,1752532154362,-500.0,0.0002055,2]
[372127553,1752532154382,-162.69863948,0.0002055,2]
[372127554,1752532154402,-268.83043954,0.0002055,2]
[372127555,1752532154423,-511.87995822,0.0002055,2]
[372127556,1752532154445,-178.092,0.00020664,2]
[372127557,1752532154481,-540.382,0.00020664,2]
[372127558,1752532154505,-230.73061749,0.00020818,2]
[372127559,1752532154527,-13325.26849278,0.000209,2]
[372127560,1752532154555,-1391.21942081,0.000209,4]
[372127561,1752532154577,-900.01,0.00021,2]
[372127562,1752532154600,-13000.0,0.00021,2]
[372127563,1752532161102,-1391.21942061,0.00021072,4]
[372127564,1752532161122,-647.00222637,0.00021098,2]
[372127565,1752532161142,-500.0,0.00021098,2]
[372127566,1752532161163,-647.0,0.00021121,2]
[372127567,1752532161182,-2154.0,0.00021121,2]
[372127568,1752532161203,-968.0,0.00021121,2]
[372127569,1752532161223,-407.0,0.00021121,2]
[372127570,1752532161243,-1705.7853418,0.00021173,2]
[372127571,1752532161264,-214.33456592,0.00021238,10]
[372127572,1752532161285,-398.0,0.00021238,3]
[372127573,1752532161306,-10196.54,0.00021238,10]
[372127574,1752532161330,-1391.21942061,0.00021245,4]
[372127575,1752532161352,-22179.81170595,0.00021248,2]
[372127577,1752532168111,-8497.11,0.00021238,10]
[372127578,1752532168132,-347820.18829405,0.00021248,2]
[372127579,1752532168152,-499.94106225,0.00021273,2]
[372127580,1752532168172,-475.70977243,0.00021273,2]
[372127581,1752532168192,-450.79705435,0.000213,2]
[372127585,1752532171079,-2556.59294565,0.000213,2]
[372127586,1752532171102,-420.0,0.00021348,2]
[372127587,1752532171123,-500.0,0.00021352,2]
[372127588,1752532171143,-215.47013733,0.0002139,2]
[372127589,1752532171168,-1391.21942061,0.00021417,5]
[372127590,1752532171187,-1096.96402626,0.000215,4]
[372127591,1752532171211,-1391.21942061,0.0002159,5]
[372127592,1752532171232,-12600.81778503,0.00021607,3]
[372127593,1752532171251,-160.0,0.00021607,3]
[372127594,1752532171271,-17660.36440595,0.00021607,3]
[372127595,1752532171293,-1270.0,0.00021609,2]
[372127596,1752532171315,-214.33456592,0.00021707,3]
[372127597,1752532171339,-160.0,0.00021707,3]
[372127598,1752532171359,-2200.0,0.00021759,2]
[372127599,1752532171384,-1391.21942061,0.00021762,5]
[372127600,1752532171403,-502.51817603,0.00021773,2]
[372127601,1752532171422,-30110.13,0.000218,2]
[372127602,1752532171441,-629.46008031,0.00021916,2]
[372127603,1752532171463,-500.0,0.00021916,2]
[372127604,1752532171484,-636.38386406,0.00021916,2]
[372127605,1752532171506,-500.0,0.00021916,2]
[372127606,1752532171527,-452.86405637,0.00021916,2]
[372127607,1752532171549,-500.0,0.00021916,2]
[372127608,1752532171570,-500.0,0.00021916,2]
[372127609,1752532171593,-500.0,0.00021916,2]
[372127610,1752532171615,-500.0,0.00021916,2]
[372127611,1752532171636,-500.0,0.00021916,2]
[372127612,1752532171661,-500.0,0.00021916,2]
[372127613,1752532171683,-500.0,0.00021916,2]
[372127614,1752532171706,-500.0,0.00021916,2]
[372127615,1752532171728,-500.0,0.00021916,2]
[372127616,1752532171750,-603.66027059,0.00021916,2]
[372127617,1752532171771,-500.0,0.00021916,2]
[372127618,1752532171791,-460.0,0.00021917,3]
[372127619,1752532171810,-460.0,0.00021917,3]
[372127620,1752532171830,-599.64,0.00021917,3]
[372127621,1752532171853,-460.0,0.00021917,3]
[372127622,1752532171873,-460.0,0.00021917,3]
[372127623,1752532171892,-460.0,0.00021917,3]
[372127624,1752532171912,-438.26491176,0.00021917,3]
[372127625,1752532171932,-460.0,0.00021917,3]
[372127626,1752532171952,-420.0,0.00021917,3]
[372127627,1752532171971,-460.0,0.00021917,3]
[372127628,1752532171991,-312.1468531,0.00021917,3]
[372127629,1752532172010,-460.0,0.00021917,3]
[372127630,1752532172034,-460.0,0.00021917,3]
[372127631,1752532172055,-460.0,0.00021917,3]
[372127632,1752532172073,-460.0,0.00021917,3]
[372127633,1752532172093,-460.0,0.00021917,3]
[372127634,1752532172112,-460.0,0.00021917,3]
[372127635,1752532172130,-460.0,0.00021917,3]
[372127636,1752532172148,-460.0,0.00021917,3]
[372127637,1752532172166,-460.0,0.00021917,3]
[372127638,1752532172185,-460.0,0.00021917,3]
[372127639,1752532172206,-460.0,0.00021917,3]
[372127640,1752532172226,-460.0,0.00021917,3]
[372127641,1752532172246,-460.0,0.00021917,3]
[372127642,1752532172266,-460.0,0.00021917,3]
[372127643,1752532172287,-460.0,0.00021917,3]
[372127644,1752532172308,-595.72522396,0.00021917,3]
[372127645,1752532172329,-254.18663775,0.00021917,3]
[372127646,1752532172349,-460.0,0.00021917,3]
[372127647,1752532172369,-460.0,0.00021917,3]
[372127648,1752532172390,-460.0,0.00021917,3]
[372127649,1752532172409,-460.0,0.00021917,3]
[372127650,1752532172430,-460.0,0.00021917,3]
[372127651,1752532172450,-460.0,0.00021917,3]
[372127652,1752532172470,-460.0,0.00021917,3]
[372127653,1752532172491,-460.0,0.00021917,3]
[372127654,1752532172511,-460.0,0.00021917,3]
[372127655,1752532172530,-460.0,0.00021917,3]
[372127656,1752532172550,-460.0,0.00021917,3]
[372127657,1752532172570,-460.0,0.00021917,3]
[372127658,1752532172589,-460.0,0.00021917,2]
[372127659,1752532172609,-460.0,0.00021917,3]
[372127660,1752532172628,-460.0,0.00021917,3]
[372127661,1752532172651,-460.0,0.00021917,3]
[372127662,1752532172671,-460.0,0.00021917,3]
[372127663,1752532172691,-460.0,0.00021917,3]
[372127664,1752532172712,-460.0,0.00021917,3]
[372127665,1752532172733,-460.0,0.00021917,3]
[372127666,1752532172752,-460.0,0.00021917,3]
[372127667,1752532172772,-364.87746416,0.00021917,3]
[372127668,1752532172792,-460.0,0.00021917,3]
[372127669,1752532172814,-460.0,0.00021917,3]
[372127670,1752532172834,-460.0,0.00021917,3]
[372127671,1752532172853,-460.0,0.00021917,3]
[372127672,1752532172872,-460.0,0.00021917,3]
[372127673,1752532172891,-460.0,0.00021917,3]
[372127674,1752532172911,-460.0,0.00021917,3]
[372127675,1752532172931,-460.0,0.00021917,3]
[372127676,1752532172950,-460.0,0.00021917,3]
[372127677,1752532172970,-460.0,0.00021917,3]
[372127678,1752532172991,-460.0,0.00021917,3]
[372127679,1752532173136,-460.0,0.00021917,3]
[372127680,1752532173157,-500.0,0.00021917,3]
[372127681,1752532173176,-460.0,0.00021917,3]
[372127682,1752532173196,-460.0,0.00021917,3]
[372127683,1752532173217,-460.0,0.00021917,3]
[372127684,1752532173238,-560.71,0.00021917,3]
[372127685,1752532173258,-460.0,0.00021917,3]
[372127686,1752532173278,-253.66645716,0.00021917,3]
[372127687,1752532173299,-460.0,0.00021917,3]
[372127688,1752532173319,-460.0,0.00021917,3]
[372127689,1752532173339,-460.0,0.00021917,3]
[372127690,1752532173360,-460.0,0.00021917,3]
[372127691,1752532173380,-460.0,0.00021917,3]
[372127692,1752532173400,-460.0,0.00021917,3]
[372127693,1752532173422,-460.0,0.00021917,3]
[372127694,1752532173441,-460.0,0.00021917,3]
[372127695,1752532173461,-460.0,0.00021917,3]
[372127696,1752532173480,-460.0,0.00021917,3]
[372127697,1752532173500,-460.0,0.00021917,3]
[372127698,1752532173521,-460.0,0.00021917,3]
[372127699,1752532173541,-460.0,0.00021917,3]
[372127700,1752532173561,-460.0,0.00021917,3]
[372127701,1752532173582,-460.0,0.00021917,3]
[372127702,1752532173603,-460.0,0.00021917,3]
[372127703,1752532173623,-460.0,0.00021917,3]
[372127704,1752532173645,-583.0915925,0.00021917,3]
[372127705,1752532173666,-460.0,0.00021917,3]
[372127706,1752532173687,-460.0,0.00021917,3]
[372127707,1752532173709,-460.0,0.00021917,3]
[372127708,1752532173731,-849.55,0.00021917,3]
[372127709,1752532173751,-460.0,0.00021917,3]
[372127710,1752532173771,-460.0,0.00021917,3]
[372127711,1752532173792,-460.0,0.00021917,3]
[372127712,1752532173813,-470.65,0.00021917,3]
[372127713,1752532173834,-460.0,0.00021917,3]
[372127714,1752532173856,-460.0,0.00021917,3]
[372127715,1752532173876,-460.0,0.00021917,2]
[372127716,1752532173896,-460.0,0.00021917,3]
[372127717,1752532173917,-460.0,0.00021917,3]
[372127718,1752532173938,-460.0,0.00021917,3]
[372127719,1752532173958,-460.0,0.00021917,3]
[372127720,1752532173980,-460.0,0.00021917,3]
[372127721,1752532174002,-156.33050255,0.00021917,3]
[372127722,1752532174022,-575.31245363,0.00021917,3]
[372127723,1752532174043,-460.07283812,0.00021917,3]
[372127724,1752532174064,-460.0,0.00021917,3]
[372127725,1752532174085,-460.0,0.00021917,3]
[372127726,1752532174106,-460.0,0.00021917,3]
[372127727,1752532174129,-460.0,0.00021917,3]
[372127728,1752532174149,-460.0,0.00021917,3]
[372127729,1752532174171,-572.89,0.00021917,3]
[372127730,1752532174192,-460.26180789,0.00021917,3]
[372127731,1752532174212,-424.0027561,0.00021917,3]
[372127732,1752532174234,-836.32,0.00021917,3]
[372127733,1752532174254,-460.0,0.00021917,3]
[372127734,1752532174276,-4225.54,0.00021917,3]
[372127735,1752532174298,-837.28,0.00021917,3]
[372127736,1752532174318,-605.04011904,0.00021917,3]
[372127737,1752532174338,-460.0,0.00021917,3]
[372127738,1752532174359,-460.0,0.00021917,3]
[372127739,1752532174379,-460.0,0.00021917,3]
[372127740,1752532174400,-460.0,0.00021917,3]
[372127741,1752532174419,-460.0,0.00021917,3]
[372127742,1752532174439,-460.0,0.00021917,3]
[372127743,1752532174460,-460.0,0.00021917,3]
[372127744,1752532174480,-460.0,0.00021917,3]
[372127745,1752532174499,-460.0,0.00021917,3]
[372127746,1752532174520,-460.0,0.00021917,3]
[372127747,1752532174540,-460.0,0.00021917,3]
[372127748,1752532174561,-460.0,0.00021917,3]
[372127749,1752532174582,-460.0,0.00021917,3]
[372127750,1752532174603,-432.98456169,0.00021917,3]
[372127751,1752532174624,-460.0,0.00021917,3]
[372127752,1752532174644,-460.0,0.00021917,3]
[372127753,1752532174667,-460.0,0.00021917,3]
[372127754,1752532174688,-460.0,0.00021917,3]
[372127755,1752532174708,-452.67279339,0.00021917,3]
[372127756,1752532174728,-460.0,0.00021917,3]
[372127757,1752532174748,-460.0,0.00021917,3]
[372127758,1752532174769,-460.0,0.00021917,3]
[372127759,1752532174789,-490.05368068,0.00021917,3]
[372127760,1752532174810,-460.0,0.00021917,3]
[372127761,1752532174829,-460.0,0.00021917,3]
[372127762,1752532174851,-460.0,0.00021917,3]
[372127763,1752532174871,-460.0,0.00021917,3]
[372127764,1752532174893,-460.0,0.00021917,3]
[372127765,1752532174915,-460.0,0.00021917,3]
[372127766,1752532174937,-460.0,0.00021917,3]
[372127767,1752532174957,-460.0,0.00021917,3]
[372127768,1752532174981,-373.94717285,0.00021917,3]
[372127769,1752532175002,-2685.53,0.00021917,3]
[372127770,1752532175025,-460.0,0.00021917,3]
[372127771,1752532175048,-460.0,0.00021917,3]
[372127772,1752532175068,-460.0,0.00021917,3]
[372127773,1752532175090,-461.56180502,0.00021917,3]
[372127774,1752532175110,-460.0,0.00021917,3]
[372127775,1752532175131,-857.87,0.00021917,3]
[372127776,1752532175150,-460.0,0.00021917,3]
[372127777,1752532175171,-460.0,0.00021917,3]
[372127778,1752532175191,-460.0,0.00021917,3]
[372127779,1752532175211,-460.0,0.00021917,3]
[372127780,1752532175232,-460.0,0.00021917,3]
[372127781,1752532175253,-460.0,0.00021917,3]
[372127782,1752532175272,-460.5364336,0.00021917,3]
[372127783,1752532175296,-460.0,0.00021917,3]
[372127784,1752532175319,-460.0,0.00021917,3]
[372127785,1752532175343,-460.0,0.00021917,3]
[372127786,1752532175363,-460.0,0.00021917,3]
[372127787,1752532175386,-460.0,0.00021917,3]
[372127788,1752532175408,-527.02,0.00021917,3]
[372127789,1752532175431,-460.0,0.00021917,3]
[372127790,1752532175452,-460.0,0.00021917,3]
[372127791,1752532175473,-460.0,0.00021917,3]
[372127792,1752532175494,-469.39,0.00021917,3]
[372127793,1752532175518,-2849.64832472,0.00021917,3]
[372127794,1752532176134,-460.0,0.00021917,3]
[372127795,1752532176154,-460.0,0.00021917,3]
[372127796,1752532176174,-460.0,0.00021917,3]
[372127797,1752532176194,-460.0,0.00021917,3]
[372127798,1752532176213,-460.0,0.00021917,3]
[372127799,1752532176233,-72.81472274,0.00021917,3]
[372127800,1752532180504,253.80003299,0.00018908,2]
[372127851,1752532236157,-596.46,0.00021121,2]
[372127852,1752532236246,-50.54,0.00021121,2]
[372127853,1752532236257,-300.0,0.00021199,2]
[372127854,1752532236266,-1013.320003,0.000212,3]
[372127863,1752532237904,-11546.80322602,0.000212,3]
[372127864,1752532237928,-5100.24117693,0.000212,3]
[372127865,1752532237939,-500.581,0.00021759,2]
[372127866,1752532237951,-2200.0,0.00021759,2]
[372127867,1752532237961,-9120.23,0.00021807,10]
[372127868,1752532237970,-7600.2,0.00021807,10]
[372127869,1752532237981,-134584.48808683,0.00021817,2]
[372127870,1752532237990,-1418.90761839,0.000219,6]
[372127871,1752532238000,-387.18527726,0.00021917,3]
[372127872,1752532238010,-460.0,0.00021917,3]
[372127873,1752532238020,-460.0,0.00021917,3]
[372127874,1752532238029,-460.81777929,0.00021917,3]
[372127875,1752532238039,-460.0,0.00021917,3]
[372127876,1752532238048,-460.0,0.00021917,3]
[372127877,1752532238058,-6892.34,0.00021917,3]
[372127878,1752532238067,-460.0,0.00021917,3]
[372127879,1752532238076,-460.0,0.00021917,3]
[372127880,1752532238086,-460.0,0.00021917,3]
[372127881,1752532238095,-178.58575524,0.00021917,3]
[372127882,1752532238105,-460.0,0.00021917,3]
[372127883,1752532238116,-460.0,0.00021917,3]
[372127884,1752532238126,-460.0,0.00021917,3]
[372127885,1752532238136,-460.0,0.00021917,3]
[372127886,1752532238146,-460.0,0.00021917,3]
[372127887,1752532238156,-460.0,0.00021917,3]
[372127888,1752532238167,-460.0,0.00021917,3]
[372127889,1752532238177,-460.0,0.00021917,3]
[372127890,1752532238186,-460.0,0.00021917,3]
[372127891,1752532238196,-181.6122221,0.00021917,3]
[372127892,1752532238207,-460.0,0.00021917,3]
[372127893,1752532238216,-460.0,0.00021917,3]
[372127894,1752532238227,-460.0,0.00021917,3]
[372127895,1752532238236,-460.0,0.00021917,3]
[372127896,1752532238248,-1071.76,0.00021917,3]
[372127897,1752532238258,-460.0,0.00021917,3]
[372127898,1752532238269,-460.0,0.00021917,3]
[372127899,1752532238279,-460.0,0.00021917,3]
[372127900,1752532238289,-460.0,0.00021917,3]
[372127901,1752532238298,-460.0,0.00021917,3]
[372127902,1752532238307,-460.0,0.00021917,3]
[372127903,1752532238317,-3108.77,0.00021917,3]
[372127904,1752532238326,-460.0,0.00021917,3]
[372127905,1752532238335,-460.0,0.00021917,3]
[372127906,1752532238345,-460.0,0.00021917,3]
[372127907,1752532238354,-460.0,0.00021917,3]
[372127908,1752532238363,-460.0,0.00021917,3]
[372127909,1752532238373,-460.0,0.00021917,3]
[372127910,1752532238383,-460.0,0.00021917,3]
[372127911,1752532238393,-460.0,0.00021917,3]
[372127912,1752532238403,-2811.79,0.00021917,3]
[372127913,1752532238412,-500.00000001,0.00021917,3]
[372127914,1752532238422,-460.0,0.00021917,3]
[372127915,1752532238432,-4740.55,0.00021917,3]
[372127916,1752532238441,-460.0,0.00021917,3]
[372127917,1752532238451,-460.0,0.00021917,3]
[372127918,1752532238460,-460.0,0.00021917,3]
[372127919,1752532238470,-460.0,0.00021917,3]
[372127920,1752532238479,-460.0,0.00021917,3]
[372127921,1752532238489,-460.0,0.00021917,3]
[372127922,1752532238498,-460.0,0.00021917,3]
[372127923,1752532238507,-460.0,0.00021917,3]
[372127924,1752532238518,-460.0,0.00021917,3]
[372127925,1752532238527,-460.0,0.00021917,3]
[372127927,1752532238536,-587.69,0.00021917,3]
[372127929,1752532238546,-460.0,0.00021917,3]
[372127930,1752532238556,-1277.88,0.00021917,3]
[372127931,1752532238567,-1083.81,0.00021917,3]
[372127932,1752532238576,-547.91,0.00021917,3]
[372127934,1752532238586,-460.0,0.00021917,3]
[372127936,1752532238596,-460.0,0.00021917,3]
[372127938,1752532238605,-561.49,0.00021917,3]
[372127940,1752532238615,-699.67,0.00021917,3]
[372127942,1752532238624,-460.0,0.00021917,3]
[372127944,1752532238634,-460.0,0.00021917,3]
[372127946,1752532238643,-460.0,0.00021917,3]
[372127948,1752532238654,-460.0,0.00021917,3]
[372127950,1752532238667,-460.0,0.00021917,3]
[372127952,1752532238677,-780.27,0.00021917,3]
[372127954,1752532238686,-460.0,0.00021917,3]
[372127956,1752532238696,-460.0,0.00021917,3]
[372127958,1752532238706,-460.0,0.00021917,3]
[372127960,1752532238716,-460.0,0.00021917,3]
[372127962,1752532238726,-460.0,0.00021917,3]
[372127964,1752532238736,-460.0,0.00021917,3]
[372127966,1752532238747,-460.0,0.00021917,3]
[372127968,1752532238757,-460.0,0.00021917,3]
[372127969,1752532238766,-480.78,0.00021917,3]
[372127971,1752532238775,-460.0,0.00021917,3]
[372127973,1752532238786,-867.48,0.00021917,3]
[372127975,1752532238795,-814.73,0.00021917,3]
[372127977,1752532238805,-460.0,0.00021917,3]
[372127979,1752532238815,-460.0,0.00021917,3]
[372127981,1752532238826,-460.0,0.00021917,3]
[372127983,1752532238835,-460.0,0.00021917,3]
[372127985,1752532238846,-460.0,0.00021917,3]
[372127987,1752532238855,-460.0,0.00021917,3]
[372127989,1752532238864,-360.44300163,0.00021917,3]
[372127991,1752532238873,-1633.31,0.00021917,3]
[372127992,1752532238883,-462.27,0.00021917,3]
[372127993,1752532238892,-4080.15,0.00021917,3]
[372127994,1752532238903,-460.0,0.00021917,3]
[372127995,1752532238912,-460.0,0.00021917,3]
[372127996,1752532238921,-460.0,0.00021917,3]
[372127997,1752532238931,-460.0,0.00021917,3]
[372127998,1752532238942,-695.48,0.00021917,3]
[372127999,1752532238952,-460.0,0.00021917,3]
[372128000,1752532238962,-460.0,0.00021917,3]
[372128002,1752532238971,-460.0,0.00021917,3]
[372128004,1752532238981,-460.0,0.00021917,3]
[372128006,1752532238990,-2062.19,0.00021917,3]
[372128008,1752532238999,-694.43,0.00021917,3]
[372128010,1752532239009,-460.0,0.00021917,3]
[372128012,1752532239019,-460.0,0.00021917,3]
[372128014,1752532239029,-551.7,0.00021917,3]
[372128016,1752532239038,-3466.55,0.00021917,3]
[372128018,1752532239048,-840.62,0.00021917,3]
[372128020,1752532239057,-460.0,0.00021917,3]
[372128022,1752532239066,-460.0,0.00021917,3]
[372128023,1752532239076,-476.17,0.00021917,3]
[372128024,1752532239085,-2617.13,0.00021917,3]
[372128025,1752532239095,-460.0,0.00021917,3]
[372128026,1752532239104,-460.0,0.00021917,3]
[372128027,1752532239114,-460.0,0.00021917,3]
[372128028,1752532239124,-460.0,0.00021917,3]
[372128029,1752532239133,-460.0,0.00021917,3]
[372128030,1752532239143,-499.24,0.00021917,3]
[372128031,1752532239153,-460.0,0.00021917,3]
[372128032,1752532239163,-460.0,0.00021917,3]
[372128033,1752532239173,-2264.69,0.00021917,3]
[372128034,1752532239183,-460.0,0.00021917,3]
[372128035,1752532239192,-460.0,0.00021917,3]
[372128036,1752532239202,-460.0,0.00021917,3]
[372128037,1752532239211,-460.0,0.00021917,3]
[372128038,1752532239221,-160.0,0.00021917,3]
[372128039,1752532239231,-460.0,0.00021917,3]
[372128041,1752532239241,-703.76,0.00021917,3]
[372128043,1752532239250,-460.0,0.00021917,3]
[372128045,1752532239260,-202.64,0.00021917,3]
[372128047,1752532239269,-801.47,0.00021917,3]
[372128049,1752532239279,-460.0,0.00021917,3]
[372128051,1752532239288,-460.0,0.00021917,3]
[372128053,1752532239298,-460.0,0.00021917,3]
[372128055,1752532239308,-460.0,0.00021917,3]
[372128057,1752532239319,-537.34,0.00021917,3]
[372128061,1752532239329,-460.0,0.00021917,3]
[372128063,1752532239339,-460.0,0.00021917,3]
[372128065,1752532239349,-460.0,0.00021917,3]
[372128067,1752532239359,-460.0,0.00021917,3]
[372128069,1752532239370,-460.0,0.00021917,3]
[372128071,1752532239379,-5277.36,0.00021917,3]
[372128073,1752532239389,-460.0,0.00021917,3]
[372128075,1752532239398,-1054.77,0.00021917,3]
[372128077,1752532239408,-634.32,0.00021917,3]
[372128079,1752532239418,-460.0,0.00021917,3]
[372128081,1752532239427,-232.23016428,0.00021917,3]
[372128083,1752532239437,-460.0,0.00021917,3]
[372128085,1752532239446,-460.0,0.00021917,3]
[372128087,1752532239456,-593.07,0.00021917,3]
[372128089,1752532239466,-461.92620056,0.00021917,3]
[372128092,1752532239476,-12500.0,0.00021917,7]
[372128093,1752532239486,-460.0,0.00021917,3]
[372128095,1752532239495,-979.14,0.00021917,3]
[372128098,1752532239505,-585.2,0.00021917,3]
[372128100,1752532239515,-356.92758961,0.00021917,3]
[372128102,1752532239525,-460.0,0.00021917,3]
[372128104,1752532239535,-460.0,0.00021917,3]
[372128106,1752532239545,-460.0,0.00021917,3]
[372128108,1752532239556,-460.0,0.00021917,3]
[372128110,1752532239566,-460.0,0.00021917,3]
[372128112,1752532239575,-460.0,0.00021917,3]
[372128114,1752532239585,-150.0,0.00021918,2]
[372128127,1752532239700,-1705.78534178,0.00021951,2]
[372128129,1752532239711,-500.0,0.00021973,2]
[372128131,1752532239721,-500.0,0.00021973,2]
[372128133,1752532239730,-301.0,0.00021973,2]
[372128135,1752532239741,-500.0,0.00021973,2]
[372128137,1752532239751,-573.10503809,0.00021973,2]
[372128139,1752532239761,-500.0,0.00021973,2]
[372128141,1752532239771,-27689.1,0.00022,7]
[372128143,1752532239781,-151.0,0.00022,2]
[372128145,1752532239791,-9999.99999982,0.00022,2]
[372128147,1752532239800,-160.0,0.00022,7]
[372128149,1752532239810,-900.01,0.00022,7]
[372128151,1752532239819,-1418.9076181,0.00022038,6]
[372128153,1752532239830,-500.0,0.00022125,2]
[372128156,1752532239839,-268.83043954,0.00022173,2]
[372128158,1752532239849,-1418.9076181,0.00022176,6]
[372128160,1752532239859,-599.64,0.00022191,3]
[372128162,1752532239868,-460.0,0.00022191,3]
[372128164,1752532239877,-460.0,0.00022191,3]
[372128166,1752532239887,-460.0,0.00022191,3]
[372128168,1752532239899,-460.0,0.00022191,3]
[372128170,1752532239908,-460.0,0.00022191,3]
[372128172,1752532239917,-460.0,0.00022191,3]
[372128174,1752532239927,-460.0,0.00022191,3]
[372128177,1752532239937,-460.0,0.00022191,3]
[372128179,1752532239947,-460.0,0.00022191,3]
[372128181,1752532239956,-596.01132318,0.00022191,3]
[372128183,1752532239965,-460.0,0.00022191,3]
[372128184,1752532239974,-189.02742569,0.00022191,3]
[372128186,1752532239984,-460.0,0.00022191,3]
[372128188,1752532239993,-460.0,0.00022191,3]
[372128190,1752532240002,-460.0,0.00022191,3]
[372128192,1752532240012,-460.0,0.00022191,3]
[372128194,1752532240021,-460.0,0.00022191,3]
[372128196,1752532240031,-460.0,0.00022191,3]
[372128199,1752532240040,-460.0,0.00022191,3]
[372128201,1752532240050,-460.0,0.00022191,3]
[372128202,1752532240059,-460.0,0.00022191,3]
[372128204,1752532240068,-460.0,0.00022191,3]
[372128206,1752532240078,-460.0,0.00022191,3]
[372128208,1752532240088,-460.0,0.00022191,3]
[372128211,1752532240098,-328.73431819,0.00022191,3]
[372128212,1752532240107,-460.0,0.00022191,3]
[372128214,1752532240118,-460.0,0.00022191,3]
[372128217,1752532240128,-460.0,0.00022191,3]
[372128219,1752532240138,-465.86622321,0.00022191,3]
[372128221,1752532240148,-460.0,0.00022191,3]
[372128223,1752532240158,-460.0,0.00022191,3]
[372128225,1752532240167,-460.0,0.00022191,3]
[372128227,1752532240177,-188.73501387,0.00022191,3]
[372128229,1752532240186,-460.0,0.00022191,3]
[372128231,1752532240195,-460.0,0.00022191,3]
[372128233,1752532240205,-460.0,0.00022191,3]
[372128235,1752532240215,-460.0,0.00022191,3]
[372128237,1752532240225,-460.0,0.00022191,3]
[372128239,1752532240234,-460.0,0.00022191,3]
[372128241,1752532240244,-222.13294024,0.00022191,3]
[372128243,1752532240253,-460.0,0.00022191,3]
[372128245,1752532240263,-460.0,0.00022191,3]
[372128247,1752532240272,-413.31971394,0.00022191,3]
[372128249,1752532240281,-849.55,0.00022191,3]
[372128251,1752532240291,-460.0,0.00022191,3]
[372128253,1752532240300,-478.80915902,0.00022191,3]
[372128255,1752532240309,-470.65,0.00022191,3]
[372128257,1752532240319,-460.0,0.00022191,3]
[372128259,1752532240328,-460.0,0.00022191,3]
[372128261,1752532240338,-460.0,0.00022191,2]